fUSD/lending_fUSD_20241208
["ID","MTS","AMOUNT","RATE_DAILY","PERIOD"]
[344651144,1733673060815,-1266.88,0.00022899,2]
[344651145,1733673060824,-2837.0,0.00022899,2]
[344651146,1733673060833,-1266.88,0.00022899,2]
[344651147,1733673060842,-2837.0,0.00022899,2]
[344651148,1733673060852,-1266.88,0.00022899,2]
[344651149,1733673060862,-500.0,0.00022899,2]
[344651150,1733673060872,-500.0,0.00022899,2]
[344651151,1733673060881,-2837.0,0.00022899,2]
[344651152,1733673060890,-1266.88,0.00022899,2]
[344651153,1733673060900,-500.0,0.00022899,2]
[344651154,1733673060910,-2837.0,0.00022899,2]
[344651155,1733673060919,-500.0,0.00022899,2]
[344651156,1733673060929,-500.0,0.00022899,2]
[344651157,1733673060938,-2837.0,0.00022899,2]
[344651158,1733673060947,-500.0,0.00022899,2]
[344651159,1733673060956,-500.0,0.00022899,2]
[344651160,1733673060965,-500.0,0.00022899,2]
[344651161,1733673060974,-491.78918965,0.00022899,2]
[344651162,1733673060983,-1266.88,0.00022899,2]
[344651163,1733673061076,-2837.0,0.00022899,2]
[344651164,1733673061092,-500.0,0.00022899,2]
[344651165,1733673061101,-2837.0,0.00022899,2]
[344651166,1733673061110,-1266.88,0.00022899,2]
[344651167,1733673061119,-500.0,0.00022899,2]
[344651168,1733673061127,-2837.0,0.00022899,2]
[344651169,1733673061137,-1266.88,0.00022899,2]
[344651170,1733673061147,-500.0,0.00022899,2]
[344651171,1733673061156,-2837.0,0.00022899,2]
[344651172,1733673061166,-500.0,0.00022899,2]
[344651173,1733673061175,-1266.88,0.00022899,2]
[344651174,1733673061184,-2837.0,0.00022899,2]
[344651175,1733673061194,-500.0,0.00022899,2]
[344651176,1733673061204,-1266.88,0.00022899,2]
[344651177,1733673061213,-1266.88,0.00022899,2]
[344651178,1733673061223,-500.0,0.00022899,2]
[344651179,1733673061233,-2837.0,0.00022899,2]
[344651180,1733673061243,-1266.88,0.00022899,2]
[344651181,1733673061253,-500.0,0.00022899,2]
[344651182,1733673061263,-2837.0,0.00022899,2]
[344651183,1733673061273,-500.0,0.00022899,2]
[344651184,1733673061282,-1266.88,0.00022899,2]
[344651185,1733673061292,-1266.88,0.00022899,2]
[344651186,1733673061302,-1266.88,0.00022899,2]
[344651187,1733673061311,-166.65,0.00022899,2]
[344651188,1733673061321,-500.0,0.00022899,2]
[344651189,1733673061330,-500.0,0.00022899,2]
[344651190,1733673061339,-500.0,0.00022899,2]
[344651191,1733673061349,-500.0,0.00022899,2]
[344651192,1733673061359,-500.0,0.00022899,2]
[344651193,1733673061368,-500.0,0.00022899,2]
[344651194,1733673061378,-500.0,0.00022899,2]
[344651195,1733673061387,-500.0,0.00022899,2]
[344651196,1733673061397,-500.0,0.00022899,2]
[344651197,1733673061406,-500.0,0.00022899,2]
[344651198,1733673061417,-500.0,0.00022899,2]
[344651199,1733673061426,-500.0,0.00022899,2]
[344651200,1733673061435,-500.0,0.00022899,2]
[344651201,1733673061446,-500.0,0.00022899,2]
[344651202,1733673061456,-500.0,0.00022899,2]
[344651203,1733673061465,-626.16,0.00022899,2]
[344651204,1733673061475,-500.0,0.00022899,2]
[344651205,1733673061485,-500.0,0.00022899,2]
[344651206,1733673061494,-500.0,0.00022899,2]
[344651207,1733673061506,-500.0,0.00022899,2]
[344651208,1733673061516,-500.0,0.00022899,2]
[344651209,1733673061526,-500.0,0.00022899,2]
[344651210,1733673061535,-500.0,0.00022899,2]
[344651211,1733673061545,-500.0,0.00022899,2]
[344651212,1733673061554,-500.0,0.00022899,2]
[344651213,1733673061564,-500.0,0.00022899,2]
[344651214,1733673061573,-315.14,0.00022899,2]
[344651215,1733673061583,-500.0,0.00022899,2]
[344651216,1733673061592,-500.0,0.00022899,2]
[344651217,1733673061602,-500.0,0.00022899,2]
[344651218,1733673061612,-500.0,0.00022899,2]
[344651219,1733673061621,-389.27,0.00022899,2]
[344651220,1733673061631,-587.61060237,0.00022899,2]
[344651221,1733673061641,-500.0,0.00022899,2]
[344651222,1733673061652,-500.0,0.00022899,2]
[344651223,1733673061662,-500.0,0.00022899,2]
[344651224,1733673061671,-500.0,0.00022899,2]
[344651225,1733673061680,-220.09,0.00022899,2]
[344651226,1733673061690,-500.0,0.00022899,2]
[344651227,1733673061699,-500.0,0.00022899,2]
[344651228,1733673061707,-500.0,0.00022899,2]
[344651229,1733673061717,-500.0,0.00022899,2]
[344651230,1733673061727,-500.0,0.00022899,2]
[344651231,1733673061736,-500.0,0.00022899,2]
[344651232,1733673061745,-500.0,0.00022899,2]
[344651233,1733673061755,-500.0,0.00022899,2]
[344651234,1733673061764,-500.0,0.00022899,2]
[344651235,1733673061773,-500.0,0.00022899,2]
[344651236,1733673061783,-500.0,0.00022899,2]
[344651237,1733673061793,-500.0,0.00022899,2]
[344651238,1733673061803,-500.0,0.00022899,2]
[344651239,1733673061812,-500.0,0.00022899,2]
[344651240,1733673061821,-500.0,0.00022899,2]
[344651241,1733673061830,-500.0,0.00022899,2]
[344651242,1733673061843,-500.0,0.00022899,2]
[344651243,1733673061863,-500.0,0.00022899,2]
[344651244,1733673061877,-500.0,0.00022899,2]
[344651245,1733673061895,-500.0,0.00022899,2]
[344651246,1733673061913,-500.0,0.00022899,2]
[344651247,1733673061927,-500.0,0.00022899,2]
[344651248,1733673061944,-500.0,0.00022899,2]
[344651249,1733673061962,-500.0,0.00022899,2]
[344651250,1733673061978,-500.0,0.00022899,2]
[344651251,1733673061995,-500.0,0.00022899,2]
[344651252,1733673062017,-500.0,0.00022899,2]
[344651253,1733673062032,-500.0,0.00022899,2]
[344651254,1733673062049,-500.0,0.00022899,2]
[344651255,1733673062066,-500.0,0.00022899,2]
[344651256,1733673062081,-500.0,0.00022899,2]
[344651257,1733673062099,-500.0,0.00022899,2]
[344651258,1733673062113,-500.0,0.00022899,2]
[344651259,1733673062125,-500.0,0.00022899,2]
[344651260,1733673062141,-500.0,0.00022899,2]
[344651261,1733673062155,-500.0,0.00022899,2]
[344651262,1733673062171,-500.0,0.00022899,2]
[344651263,1733673062185,-500.0,0.00022899,2]
[344651264,1733673062198,-500.0,0.00022899,2]
[344651265,1733673062213,-500.0,0.00022899,2]
[344651266,1733673062226,-500.0,0.00022899,2]
[344651267,1733673062240,-500.0,0.00022899,2]
[344651268,1733673062253,-500.0,0.00022899,2]
[344651269,1733673062268,-500.0,0.00022899,2]
[344651270,1733673062281,-500.0,0.00022899,2]
[344651271,1733673062294,-500.0,0.00022899,2]
[344651272,1733673062308,-500.0,0.00022899,2]
[344651273,1733673062321,-500.0,0.00022899,2]
[344651274,1733673062334,-500.0,0.00022899,2]
[344651275,1733673062347,-500.0,0.00022899,2]
[344651276,1733673062361,-500.0,0.00022899,2]
[344651277,1733673062374,-500.0,0.00022899,2]
[344651278,1733673062387,-500.0,0.00022899,2]
[344651279,1733673062400,-634.38642829,0.00022899,2]
[344651280,1733673062413,-1105.95,0.00022899,2]
[344651281,1733673062426,-1105.95,0.00022899,2]
[344651282,1733673062439,-1105.95,0.00022899,2]
[344651283,1733673062452,-1105.95,0.00022899,2]
[344651284,1733673062467,-1105.95,0.00022899,2]
[344651285,1733673062480,-1105.95,0.00022899,2]
[344651286,1733673062493,-1105.95,0.00022899,2]
[344651287,1733673062508,-1105.95,0.00022899,2]
[344651288,1733673062521,-1105.95,0.00022899,2]
[344651289,1733673062534,-1105.95,0.00022899,2]
[344651290,1733673062547,-1105.95,0.00022899,2]
[344651291,1733673062560,-1105.95,0.00022899,2]
[344651292,1733673062573,-1105.95,0.00022899,2]
[344651293,1733673062587,-1105.95,0.00022899,2]
[344651294,1733673062600,-500.0,0.00022899,2]
[344651295,1733673062613,-500.0,0.00022899,2]
[344651296,1733673062628,-349.07,0.00022899,2]
[344651297,1733673062640,-500.0,0.00022899,2]
[344651298,1733673062653,-500.0,0.00022899,2]
[344651299,1733673062665,-500.0,0.00022899,2]
[344651300,1733673062679,-500.0,0.00022899,2]
[344651301,1733673062692,-500.0,0.00022899,2]
[344651302,1733673062706,-500.0,0.00022899,2]
[344651303,1733673062721,-500.0,0.00022899,2]
[344651304,1733673062736,-500.0,0.00022899,2]
[344651305,1733673062745,-500.0,0.00022899,2]
[344651306,1733673062754,-500.0,0.00022899,2]
[344651307,1733673062765,-500.0,0.00022899,2]
[344651308,1733673062774,-500.0,0.00022899,2]
[344651309,1733673062784,-500.0,0.00022899,2]
[344651310,1733673062793,-500.0,0.00022899,2]
[344651311,1733673062802,-500.0,0.00022899,2]
[344651312,1733673062811,-500.0,0.00022899,2]
[344651313,1733673062820,-500.0,0.00022899,2]
[344651314,1733673062829,-500.0,0.00022899,2]
[344651315,1733673062838,-500.0,0.00022899,2]
[344651316,1733673062847,-500.0,0.00022899,2]
[344651317,1733673062857,-412.61064984,0.00022899,2]
[344651318,1733673063001,-1730.67,0.00022899,2]
[344651319,1733673063088,-1730.67,0.00022899,2]
[344651320,1733673063099,-1730.67,0.00022899,2]
[344651321,1733673063110,-1730.67,0.00022899,2]
[344651322,1733673063121,-1730.67,0.00022899,2]
[344651323,1733673063131,-1730.67,0.00022899,2]
[344651324,1733673063142,-1730.67,0.00022899,2]
[344651325,1733673063152,-1730.67,0.00022899,2]
[344651326,1733673063164,-1730.67,0.00022899,2]
[344651327,1733673063174,-1730.67,0.00022899,2]
[344651328,1733673063185,-1730.67,0.00022899,2]
[344651329,1733673063194,-1730.67,0.00022899,2]
[344651330,1733673063206,-1730.67,0.00022899,2]
[344651331,1733673063216,-1730.67,0.00022899,2]
[344651332,1733673063225,-151.0,0.00022899,7]
[344651333,1733673063234,-200.0,0.00022899,2]
[344651334,1733673063244,-3197.20704894,0.00022899,2]
[344651335,1733673063253,-200.0,0.000229,2]
[344651336,1733673063264,-1545944.89927009,0.000229,2]
[344651337,1733673063491,-713893.03495822,0.000229,2]
[344651338,1733673063503,-770065.21787785,0.000229,2]
[344651339,1733673063514,-75884.09206807,0.000229,5]
[344651340,1733673063526,-280.370409,0.000229,7]
[344651341,1733673063536,-280.370409,0.000229,7]
[344651342,1733673063545,-302.692836,0.000229,7]
[344651343,1733673063555,-302.692836,0.000229,7]
[344651344,1733673063564,-212.547826,0.000229,7]
[344651345,1733673063573,-212.547826,0.000229,7]
[344651346,1733673063582,-250.0,0.000229,2]
[344651347,1733673063591,-250.0,0.000229,2]
[344651348,1733673063600,-250.0,0.000229,2]
[344651349,1733673063609,-250.0,0.000229,2]
[344651350,1733673063619,-250.0,0.000229,2]
[344651351,1733673063628,-250.0,0.000229,2]
[344651352,1733673063637,-250.0,0.000229,2]
[344651353,1733673063646,-250.0,0.000229,2]
[344651354,1733673063656,-250.0,0.000229,2]
[344651355,1733673063665,-250.0,0.000229,2]
[344651356,1733673063675,-250.0,0.000229,2]
[344651357,1733673063684,-250.0,0.000229,2]
[344651358,1733673063693,-250.0,0.000229,2]
[344651359,1733673063702,-250.0,0.000229,2]
[344651360,1733673063711,-250.0,0.000229,2]
[344651361,1733673063720,-250.0,0.000229,2]
[344651362,1733673063728,-250.0,0.000229,2]
[344651363,1733673063737,-250.0,0.000229,2]
[344651364,1733673063747,-250.0,0.000229,2]
[344651365,1733673063756,-250.0,0.000229,2]
[344651366,1733673063768,-250.0,0.000229,2]
[344651367,1733673063777,-250.0,0.000229,2]
[344651368,1733673063786,-250.0,0.000229,2]
[344651369,1733673063796,-250.0,0.000229,2]
[344651370,1733673063805,-250.0,0.000229,2]
[344651371,1733673063814,-250.0,0.000229,2]
[344651372,1733673063824,-250.0,0.000229,2]
[344651373,1733673063833,-250.0,0.000229,2]
[344651374,1733673063843,-250.0,0.000229,2]
[344651375,1733673063853,-250.0,0.000229,2]
[344651376,1733673063862,-250.0,0.000229,2]
[344651377,1733673063872,-250.0,0.000229,2]
[344651378,1733673063881,-250.0,0.000229,2]
[344651379,1733673063891,-250.0,0.000229,2]
[344651380,1733673063900,-250.0,0.000229,2]
[344651381,1733673063910,-250.0,0.000229,2]
[344651382,1733673063920,-250.0,0.000229,2]
[344651383,1733673063930,-250.0,0.000229,2]
[344651384,1733673063941,-250.0,0.000229,2]
[344651385,1733673063951,-438.8,0.000229,2]
[344651386,1733673063961,-3508.001108,0.000229,7]
[344651387,1733673063970,-3508.001108,0.000229,7]
[344651388,1733673063980,-151.0,0.000229,7]
[344651389,1733673063989,-10000.0,0.000229,7]
[344651390,1733673064001,-10000.0,0.000229,7]
[344651391,1733673064015,-10000.0,0.000229,7]
[344651392,1733673064024,-301.23769,0.000229,7]
[344651393,1733673064034,-301.23769,0.000229,7]
[344651394,1733673064043,-151.0,0.000229,7]
[344651395,1733673064052,-151.0,0.000229,7]
[344651396,1733673064061,-240.983994,0.000229,7]
[344651397,1733673064072,-151.0,0.000229,7]
[344651398,1733673064083,-227.177169,0.000229,7]
[344651399,1733673064093,-240.983994,0.000229,7]
[344651400,1733673064102,-188.452774,0.000229,7]
[344651401,1733673064112,-227.177169,0.000229,7]
[344651402,1733673064122,-188.452774,0.000229,7]
[344651403,1733673064132,-264.817177,0.000229,7]
[344651404,1733673064143,-264.817177,0.000229,7]
[344651405,1733673064153,-3720.36914733,0.000229,2]
[344651406,1733673064163,-151.0,0.000229,7]
[344651407,1733673064173,-152.0,0.00022917,3]
[344651408,1733673064183,-737.99,0.00022933,2]
[344651409,1733673064193,-714.25,0.00022933,2]
[344651410,1733673064203,-990.18,0.00022933,2]
[344651411,1733673064211,-689.05,0.00022933,2]
[344651412,1733673064221,-1804.89,0.00022933,2]
[344651413,1733673064230,-520.69,0.00022933,2]
[344651414,1733673064240,-500.0,0.00022933,2]
[344651415,1733673064250,-591.57,0.00022933,2]
[344651416,1733673064259,-615.53705048,0.00022933,2]
[344651417,1733673064272,-500.0,0.00022933,2]
[344651418,1733673064283,-500.0,0.00022933,2]
[344651419,1733673064293,-542.40386496,0.00022933,2]
[344651420,1733673064304,-500.0,0.00022933,2]
[344651421,1733673064314,-601.4962116,0.00022933,2]
[344651422,1733673064323,-500.0,0.00022933,2]
[344651423,1733673064332,-567.0,0.00022933,2]
[344651424,1733673064342,-1262.0,0.00022933,2]
[344651425,1733673064351,-2004.0,0.00022933,2]
[344651426,1733673064360,-150.0,0.00022933,2]
[344651427,1733673064370,-633.193,0.00022933,2]
[344651428,1733673064379,-1893.0,0.00022933,2]
[344651429,1733673064389,-654.517,0.00022933,2]
[344651430,1733673064399,-817.0,0.00022933,2]
[344651431,1733673064409,-3761.0,0.00022933,2]
[344651432,1733673064419,-1252.0,0.00022933,2]
[344651433,1733673064429,-1884.061,0.00022933,2]
[344651434,1733673064439,-670.623,0.00022933,2]
[344651435,1733673064449,-978.295,0.00022933,2]
[344651436,1733673064460,-13718.0,0.00022933,2]
[344651437,1733673064470,-1167.0,0.00022933,2]
[344651438,1733673064479,-5965.0,0.00022933,2]
[344651439,1733673064489,-150.0,0.00022933,2]
[344651440,1733673064499,-1098.0,0.00022933,2]
[344651441,1733673064508,-238.0,0.0002295,2]
[344651442,1733673064520,-187.15,0.0002296,2]
[344651443,1733673064529,-273.75444934,0.00022978,2]
[344651444,1733673064538,-1266.88,0.00022978,2]
[344651445,1733673064547,-1266.88,0.00022978,2]
[344651446,1733673064557,-1266.88,0.00022978,2]
[344651447,1733673064567,-1266.88,0.00022978,2]
[344651448,1733673064577,-1266.9,0.00022978,2]
[344651449,1733673064587,-1105.95,0.00022978,2]
[344651450,1733673064597,-1105.95,0.00022978,2]
[344651451,1733673064607,-1105.95,0.00022978,2]
[344651452,1733673064617,-1105.95,0.00022978,2]
[344651453,1733673064627,-1106.08,0.00022978,2]
[344651454,1733673064637,-1730.67,0.00022978,2]
[344651455,1733673064646,-1730.67,0.00022978,2]
[344651456,1733673064656,-1730.67,0.00022978,2]
[344651457,1733673064665,-1730.67,0.00022978,2]
[344651458,1733673064675,-1730.75,0.00022978,2]
[344651459,1733673064684,-151.0,0.00022978,7]
[344651460,1733673064693,-6881.20187548,0.00022979,2]
[344651461,1733673064707,-387090.15796916,0.00022979,2]
[344651462,1733673064717,-39428.20299957,0.00022979,2]
[344651463,1733673064730,-25066.85652576,0.00022979,2]
[344651464,1733673064741,-12095.87470369,0.00022979,2]
[344651465,1733673295333,500.0,0.00021,120]
[344651470,1733673717325,69500.0,0.00021,120]
[344651471,1733673723204,499093.3585517,0.000201,120]
[344651472,1733673728238,1645285.75345169,0.0002,120]
[344651473,1733673803474,6032.96032656,0.00019,120]
[344651474,1733674124548,400.0,0.000149,5]
[344651475,1733674126739,900.0,0.00015,5]
[344651476,1733674162585,300.0,0.000149,5]
[344651477,1733674164707,600.0,0.00015,5]
[344651490,1733674232408,-1300.0,0.000151,5]
[344651492,1733674232417,-900.0,0.000151,5]
[344651493,1733674232427,-1775.30942833,0.000152,5]
[344651494,1733674232513,-24.69057167,0.000152,5]
[344651495,1733674232523,-1200.0,0.000152,5]
[344651496,1733674232533,-2200.0,0.000153,5]
[344651497,1733674232543,-1500.0,0.000153,5]
[344651498,1733674232554,-1001.18091689,0.00015393,2]
[344651499,1733674232563,-12993.25787524,0.00015395,2]
[344651500,1733674232575,-64712.46892293,0.00015395,2]
[344651501,1733674232586,-60477.27320183,0.00015395,2]
[344651502,1733674232595,-400.0,0.000154,5]
[344651503,1733674232604,-300.0,0.000154,5]
[344651504,1733674232613,-173.33164658,0.0001545,2]
[344651505,1733674232622,-758.01883717,0.00015473,2]
[344651506,1733674232632,-220.84772197,0.00015473,2]
[344651507,1733674232641,-1591.58236672,0.00015473,2]
[344651508,1733674232650,-168.96,0.000155,2]
[344651509,1733674232659,-400.0,0.000155,5]
[344651510,1733674232668,-577.49018671,0.000155,2]
[344651511,1733674232677,-300.0,0.000155,5]
[344651512,1733674232686,-1000.0,0.00015524,2]
[344651513,1733674232695,-407.0,0.00015524,2]
[344651514,1733674232704,-1000.0,0.00015533,2]
[344651515,1733674232713,-601.0,0.00015534,2]
[344651516,1733674232722,-47676.0,0.00015534,2]
[344651517,1733674232730,-496.0,0.00015534,2]
[344651518,1733674232740,-863.0,0.00015534,2]
[344651519,1733674232749,-797.0,0.00015534,2]
[344651520,1733674232758,-407.0,0.00015539,2]
[344651521,1733674232768,-407.0,0.00015539,2]
[344651522,1733674232776,-407.0,0.00015539,2]
[344651523,1733674232785,-407.0,0.00015539,2]
[344651524,1733674232794,-407.0,0.00015539,2]
[344651525,1733674232804,-407.0,0.00015539,2]
[344651526,1733674232813,-407.0,0.00015539,2]
[344651527,1733674232822,-407.0,0.00015539,2]
[344651528,1733674232831,-407.0,0.00015539,2]
[344651529,1733674232839,-3854.98858578,0.00015539,2]
[344651530,1733674232848,-795.30217339,0.0001554,2]
[344651531,1733674232860,-3059.68641239,0.0001554,2]
[344651532,1733674232869,-3854.98858578,0.0001554,2]
[344651533,1733674232878,-300.0,0.00015548,2]
[344651534,1733674232887,-317829.66820083,0.00015549,2]
[344651535,1733674232896,-1075.02639277,0.00015549,5]
[344651536,1733674232905,-1075.02639277,0.00015549,5]
[344651537,1733674232916,-1075.02639277,0.00015549,5]
[344651538,1733674232926,-1075.02639277,0.00015549,5]
[344651539,1733674232935,-1075.02639277,0.00015549,5]
[344651541,1733674232944,-500.85923626,0.00015549,2]
[344651544,1733674232954,-174.14953008,0.00015549,2]
[344651547,1733674232963,-500.0,0.00015549,2]
[344651549,1733674232972,-500.0,0.00015549,2]
[344651550,1733674232981,-500.0,0.00015549,2]
[344651551,1733674232990,-398.20857657,0.00015549,2]
[344651552,1733674232999,-500.0,0.00015549,2]
[344651553,1733674233008,-500.0,0.00015549,2]
[344651554,1733674233017,-500.0,0.00015549,2]
[344651555,1733674233027,-500.0,0.00015549,2]
[344651556,1733674233036,-500.0,0.00015549,2]
[344651557,1733674233046,-325.13483338,0.00015549,2]
[344651558,1733674233057,-500.0,0.00015549,2]
[344651559,1733674233067,-500.0,0.00015549,2]
[344651560,1733674233076,-500.0,0.00015549,2]
[344651561,1733674233086,-500.0,0.00015549,2]
[344651562,1733674233096,-500.0,0.00015549,2]
[344651563,1733674233105,-500.0,0.00015549,2]
[344651564,1733674233115,-500.0,0.00015549,2]
[344651565,1733674233125,-500.0,0.00015549,2]
[344651566,1733674233135,-500.0,0.00015549,2]
[344651567,1733674233145,-500.0,0.00015549,2]
[344651568,1733674233154,-500.0,0.00015549,2]
[344651569,1733674233164,-500.0,0.00015549,2]
[344651570,1733674233174,-500.0,0.00015549,2]
[344651571,1733674233183,-500.0,0.00015549,2]
[344651572,1733674233193,-500.0,0.00015549,2]
[344651573,1733674233203,-500.0,0.00015549,2]
[344651574,1733674233212,-500.0,0.00015549,2]
[344651575,1733674233222,-537.73332811,0.00015549,2]
[344651576,1733674233232,-500.0,0.00015549,2]
[344651577,1733674233241,-500.0,0.00015549,2]
[344651578,1733674233250,-500.0,0.00015549,2]
[344651579,1733674233260,-500.0,0.00015549,2]
[344651580,1733674233269,-500.0,0.00015549,2]
[344651581,1733674233278,-500.0,0.00015549,2]
[344651582,1733674233288,-500.0,0.00015549,2]
[344651583,1733674233301,-500.0,0.00015549,2]
[344651584,1733674233313,-500.0,0.00015549,2]
[344651585,1733674233322,-500.0,0.00015549,2]
[344651586,1733674233331,-500.0,0.00015549,2]
[344651587,1733674233340,-500.0,0.00015549,2]
[344651588,1733674233350,-500.0,0.00015549,2]
[344651589,1733674233363,-500.0,0.00015549,2]
[344651590,1733674233372,-500.0,0.00015549,2]
[344651591,1733674233382,-500.0,0.00015549,2]
[344651592,1733674233392,-500.0,0.00015549,2]
[344651593,1733674233402,-500.0,0.00015549,2]
[344651594,1733674233411,-500.0,0.00015549,2]
[344651595,1733674233420,-500.0,0.00015549,2]
[344651596,1733674233430,-167.73499864,0.00015549,2]
[344651597,1733674233440,-500.0,0.00015549,2]
[344651598,1733674233449,-633.59215036,0.00015549,2]
[344651599,1733674233458,-500.0,0.00015549,2]
[344651600,1733674233468,-500.0,0.00015549,2]
[344651601,1733674233477,-500.0,0.00015549,2]
[344651602,1733674233486,-500.0,0.00015549,2]
[344651603,1733674233495,-437.02338308,0.00015549,2]
[344651604,1733674233504,-335.64061785,0.00015549,2]
[344651605,1733674233513,-335.64061785,0.00015549,2]
[344651606,1733674233522,-500.0,0.00015549,2]
[344651607,1733674233531,-500.0,0.00015549,2]
[344651608,1733674233541,-500.0,0.00015549,2]
[344651609,1733674233551,-500.0,0.00015549,2]
[344651610,1733674233561,-500.0,0.00015549,2]
[344651611,1733674233570,-500.0,0.00015549,2]
[344651612,1733674233580,-500.0,0.00015549,2]
[344651613,1733674233589,-500.0,0.00015549,2]
[344651614,1733674233598,-500.0,0.00015549,2]
[344651615,1733674233607,-500.0,0.00015549,2]
[344651616,1733674233617,-500.0,0.00015549,2]
[344651617,1733674233626,-500.0,0.00015549,2]
[344651618,1733674233636,-500.0,0.00015549,2]
[344651619,1733674233645,-500.0,0.00015549,2]
[344651620,1733674233654,-500.0,0.00015549,2]
[344651621,1733674233663,-500.0,0.00015549,2]
[344651622,1733674233672,-500.0,0.00015549,2]
[344651623,1733674233681,-500.0,0.00015549,2]
[344651624,1733674233691,-500.0,0.00015549,2]
[344651625,1733674233699,-500.0,0.00015549,2]
[344651626,1733674233709,-500.0,0.00015549,2]
[344651627,1733674233718,-500.0,0.00015549,2]
[344651628,1733674233727,-500.0,0.00015549,2]
[344651629,1733674233736,-500.0,0.00015549,2]
[344651630,1733674233746,-271.88443971,0.00015549,2]
[344651631,1733674233755,-500.0,0.00015549,2]
[344651632,1733674233765,-500.0,0.00015549,2]
[344651633,1733674233774,-500.0,0.00015549,2]
[344651634,1733674233783,-500.0,0.00015549,2]
[344651635,1733674233792,-500.0,0.00015549,2]
[344651636,1733674233802,-2556.21145546,0.00015549,2]
[344651637,1733674233811,-500.0,0.00015549,2]
[344651638,1733674233821,-500.0,0.00015549,2]
[344651639,1733674233830,-2556.21145546,0.00015549,2]
[344651640,1733674233840,-500.91376766,0.00015549,2]
[344651641,1733674233850,-619.56809418,0.00015549,2]
[344651642,1733674233860,-512.69582053,0.00015549,2]
[344651643,1733674233870,-333.64354469,0.00015549,2]
[344651644,1733674233879,-285.59055614,0.00015549,2]
[344651645,1733674233889,-2556.21145546,0.00015549,2]
[344651646,1733674233899,-576.18000821,0.00015549,2]
[344651647,1733674233908,-2556.21145546,0.00015549,2]
[344651648,1733674233919,-2556.21145546,0.00015549,2]
[344651649,1733674233929,-2556.21145546,0.00015549,2]
[344651650,1733674233939,-503.70814381,0.00015549,2]
[344651651,1733674233949,-2556.21145546,0.00015549,2]
[344651652,1733674233959,-2556.21145546,0.00015549,2]
[344651653,1733674233969,-2556.21145546,0.00015549,2]
[344651654,1733674233979,-19844.9400555,0.00015549,3]
[344651655,1733674233988,-435944.35732549,0.0001555,2]
[344651656,1733674234001,-4452.11784734,0.0001555,2]
[344651657,1733674234017,-277.89269,0.0001555,2]
[344651658,1733674234028,-626.9414986,0.0001555,2]
[344651659,1733674234039,-17344.18147701,0.0001555,2]
[344651660,1733674234052,-42144.58992283,0.0001555,2]
[344651661,1733674234102,-695.16061057,0.0001555,2]
[344651662,1733674234329,-385.15400003,0.0001555,2]
[344651668,1733674238429,-60799.32294842,0.0001555,2]
[344651669,1733674238483,-66714928.64582399,0.0001555,2]
[344651670,1733674238493,-223.97205762,0.00015573,2]
[344651671,1733674238503,-161.928874,0.00015573,2]